lending/lending_fUSD_20250121
["ID","MTS","AMOUNT","RATE_DAILY","PERIOD"]
[349822233,1737451859920,-997.49,0.00020547,2]
[349822234,1737451859929,-500.0,0.00020547,2]
[349822235,1737451859939,-500.0,0.00020547,2]
[349822236,1737451859949,-643.01,0.00020547,2]
[349822237,1737451859958,-500.0,0.00020547,2]
[349822238,1737451859967,-1363.79,0.00020547,2]
[349822239,1737451859977,-500.0,0.00020547,2]
[349822240,1737451859985,-968.6,0.00020547,2]
[349822241,1737451859994,-731.54,0.00020547,2]
[349822242,1737451860005,-671.55,0.00020547,2]
[349822243,1737451860015,-500.0,0.00020547,2]
[349822244,1737451860025,-1512.89,0.00020547,2]
[349822245,1737451860034,-1824.0,0.00020547,2]
[349822246,1737451860047,-519.79160225,0.00020547,2]
[349822247,1737451860058,-500.0,0.00020547,2]
[349822248,1737451860068,-500.0,0.00020547,2]
[349822249,1737451860078,-720.36,0.00020547,2]
[349822250,1737451860088,-500.0,0.00020547,2]
[349822251,1737451860098,-300.0,0.00020547,2]
[349822252,1737451860108,-500.0,0.00020547,2]
[349822253,1737451860117,-1598.88,0.00020547,2]
[349822254,1737451860127,-1625.7,0.00020547,2]
[349822255,1737451860136,-500.0,0.00020547,2]
[349822256,1737451860145,-11076.26,0.00020547,2]
[349822257,1737451860155,-714.81,0.00020547,2]
[349822258,1737451860164,-1000.0,0.00020562,2]
[349822259,1737451860174,-171.724417,0.00020596,2]
[349822260,1737451860184,-28232.7851,0.00020721,2]
[349822261,1737451860193,-577.59154716,0.00020742,2]
[349822262,1737451860202,-244.10228757,0.00020748,2]
[349822263,1737451860211,-405.71652632,0.00020776,2]
[349822264,1737451860220,-500.0,0.0002082,2]
[349822265,1737451860230,-500.0,0.0002082,2]
[349822266,1737451860239,-647.89,0.0002082,2]
[349822267,1737451860250,-893.13,0.0002082,2]
[349822268,1737451860261,-500.0,0.0002082,2]
[349822269,1737451860270,-500.0,0.0002082,2]
[349822270,1737451860279,-500.0,0.0002082,2]
[349822271,1737451860289,-500.0,0.0002082,2]
[349822272,1737451860298,-500.0,0.0002082,2]
[349822273,1737451860307,-500.0,0.0002082,2]
[349822274,1737451860316,-500.0,0.0002082,2]
[349822275,1737451860325,-500.0,0.0002082,2]
[349822276,1737451860335,-500.0,0.0002082,2]
[349822277,1737451860343,-500.0,0.0002082,2]
[349822278,1737451860353,-500.0,0.0002082,2]
[349822279,1737451860362,-500.0,0.0002082,2]
[349822280,1737451860371,-519.93679604,0.0002082,2]
[349822281,1737451860384,-500.0,0.0002082,2]
[349822282,1737451860393,-500.0,0.0002082,2]
[349822283,1737451860402,-500.0,0.0002082,2]
[349822284,1737451860411,-500.0,0.0002082,2]
[349822285,1737451860422,-500.0,0.0002082,2]
[349822286,1737451860431,-500.0,0.0002082,2]
[349822287,1737451860440,-500.0,0.0002082,2]
[349822288,1737451860449,-500.0,0.0002082,2]
[349822289,1737451860459,-500.0,0.0002082,2]
[349822290,1737451860469,-500.0,0.0002082,2]
[349822291,1737451860478,-500.0,0.0002082,2]
[349822292,1737451860488,-202.58,0.0002082,2]
[349822293,1737451860591,-324.59,0.0002082,2]
[349822294,1737451860601,-500.0,0.0002082,2]
[349822295,1737451860611,-500.0,0.0002082,2]
[349822296,1737451860620,-500.0,0.0002082,2]
[349822297,1737451860629,-550.69,0.0002082,2]
[349822298,1737451860638,-525.13,0.0002082,2]
[349822299,1737451860648,-521.1,0.0002082,2]
[349822300,1737451860657,-797.02,0.0002082,2]
[349822301,1737451860666,-556.55,0.0002082,2]
[349822302,1737451860675,-1866.84,0.0002082,2]
[349822303,1737451860685,-2519.65,0.0002082,2]
[349822304,1737451860694,-548.24,0.0002082,2]
[349822305,1737451860703,-777.32,0.0002082,2]
[349822306,1737451860713,-500.0,0.0002082,2]
[349822307,1737451860722,-1125.78,0.0002082,2]
[349822308,1737451860732,-155.553152,0.0002082,2]
[349822309,1737451860741,-500.0,0.0002082,2]
[349822310,1737451860751,-788.4,0.0002082,2]
[349822311,1737451860765,-1354.69,0.0002082,2]
[349822312,1737451860774,-500.0,0.0002082,2]
[349822313,1737451860783,-500.0,0.0002082,2]
[349822314,1737451860792,-500.0,0.0002082,2]
[349822315,1737451860802,-500.0,0.0002082,2]
[349822316,1737451860812,-500.0,0.0002082,2]
[349822317,1737451860821,-500.0,0.0002082,2]
[349822318,1737451860831,-500.0,0.0002082,2]
[349822319,1737451860840,-844.31,0.0002082,2]
[349822320,1737451860850,-208.822323,0.0002082,2]
[349822321,1737451860859,-1391.48,0.0002082,2]
[349822322,1737451860869,-1002.55,0.0002082,2]
[349822323,1737451860879,-500.0,0.0002082,2]
[349822324,1737451860889,-500.0,0.0002082,2]
[349822325,1737451860898,-640.71,0.0002082,2]
[349822326,1737451860908,-500.0,0.0002082,2]
[349822327,1737451860917,-500.0,0.0002082,2]
[349822328,1737451860927,-500.0,0.0002082,2]
[349822329,1737451860936,-731.04,0.0002082,2]
[349822330,1737451860946,-500.0,0.0002082,2]
[349822331,1737451860955,-500.0,0.0002082,2]
[349822332,1737451860965,-500.0,0.0002082,2]
[349822333,1737451860974,-714.65,0.0002082,2]
[349822334,1737451860983,-500.0,0.0002082,2]
[349822335,1737451860992,-505.72,0.0002082,2]
[349822336,1737451861002,-1332.26,0.0002082,2]
[349822337,1737451861015,-500.0,0.0002082,2]
[349822338,1737451861024,-1133.86,0.0002082,2]
[349822339,1737451861034,-623.68,0.0002082,2]
[349822340,1737451861045,-1398.4,0.0002082,2]
[349822341,1737451861055,-500.0,0.0002082,2]
[349822342,1737451861064,-1012.63,0.0002082,2]
[349822343,1737451861074,-500.0,0.0002082,2]
[349822344,1737451861084,-1816.63,0.0002082,2]
[349822345,1737451861094,-500.0,0.0002082,2]
[349822346,1737451861104,-2242.61,0.0002082,2]
[349822347,1737451861113,-537.32,0.0002082,2]
[349822348,1737451861123,-500.0,0.0002082,2]
[349822349,1737451861133,-500.0,0.0002082,2]
[349822350,1737451861142,-598.63,0.0002082,2]
[349822351,1737451861153,-819.36,0.0002082,2]
[349822352,1737451861162,-500.0,0.0002082,2]
[349822353,1737451861172,-878.52,0.0002082,2]
[349822354,1737451861181,-500.0,0.0002082,2]
[349822355,1737451861190,-500.0,0.0002082,2]
[349822356,1737451861199,-500.0,0.0002082,2]
[349822357,1737451861209,-865.06,0.0002082,2]
[349822358,1737451861218,-2333.67,0.0002082,2]
[349822359,1737451861228,-1054.66,0.0002082,2]
[349822360,1737451861237,-500.0,0.0002082,2]
[349822361,1737451861247,-639.03,0.0002082,2]
[349822362,1737451861259,-1659.51,0.0002082,2]
[349822363,1737451861269,-500.0,0.0002082,2]
[349822364,1737451861278,-788.63,0.0002082,2]
[349822365,1737451861288,-500.0,0.0002082,2]
[349822366,1737451861297,-2681.81,0.0002082,2]
[349822367,1737451861307,-500.0,0.0002082,2]
[349822368,1737451861316,-792.79,0.0002082,2]
[349822369,1737451861326,-500.0,0.0002082,2]
[349822370,1737451861335,-607.89,0.0002082,2]
[349822371,1737451861344,-809.0,0.0002082,2]
[349822372,1737451861354,-630.14,0.0002082,2]
[349822373,1737451861364,-500.0,0.0002082,2]
[349822374,1737451861374,-1650.93,0.0002082,2]
[349822375,1737451861385,-1908.06,0.0002082,2]
[349822376,1737451861395,-1008.63,0.0002082,2]
[349822377,1737451861404,-500.0,0.0002082,2]
[349822378,1737451861414,-609.84,0.0002082,2]
[349822379,1737451861423,-2139.5,0.0002082,2]
[349822380,1737451861433,-1503.49,0.0002082,2]
[349822381,1737451861442,-1375.23,0.0002082,2]
[349822382,1737451861453,-500.0,0.0002082,2]
[349822383,1737451861463,-500.0,0.0002082,2]
[349822384,1737451861472,-900.29,0.0002082,2]
[349822385,1737451861482,-584.53069339,0.00020821,2]
[349822386,1737451861491,-500.0,0.00020821,2]
[349822387,1737451861500,-500.0,0.00020821,2]
[349822388,1737451861511,-500.0,0.00020821,2]
[349822389,1737451861520,-500.0,0.00020821,2]
[349822390,1737451861530,-500.0,0.00020821,2]
[349822391,1737451861539,-500.0,0.00020821,2]
[349822392,1737451861548,-500.0,0.00020821,2]
[349822393,1737451861557,-1366.89,0.00020821,2]
[349822394,1737451861566,-500.0,0.00020821,2]
[349822395,1737451861575,-643.51,0.00020821,2]
[349822396,1737451861584,-500.0,0.00020821,2]
[349822397,1737451861593,-500.0,0.00020821,2]
[349822398,1737451861602,-500.0,0.00020821,2]
[349822399,1737451861611,-527.47229328,0.00020821,2]
[349822400,1737451861620,-500.0,0.00020821,2]
[349822401,1737451861630,-500.0,0.00020821,2]
[349822402,1737451861639,-687.44,0.00020821,2]
[349822403,1737451861648,-500.0,0.00020821,2]
[349822404,1737451861657,-500.0,0.00020821,2]
[349822405,1737451861666,-500.0,0.00020821,2]
[349822406,1737451861676,-297.73610232,0.00020821,2]
[349822407,1737451861685,-565.39,0.00020821,2]
[349822408,1737451861694,-500.0,0.00020821,2]
[349822409,1737451861703,-500.0,0.00020821,2]
[349822410,1737451861712,-500.0,0.00020821,2]
[349822411,1737451861721,-500.0,0.00020821,2]
[349822412,1737451861731,-984.73,0.00020821,2]
[349822413,1737451861740,-500.0,0.00020821,2]
[349822414,1737451861749,-703.52,0.00020821,2]
[349822415,1737451861761,-500.0,0.00020821,2]
[349822416,1737451861770,-500.0,0.00020821,2]
[349822417,1737451861780,-165.22711935,0.00020821,2]
[349822418,1737451861790,-500.0,0.00020821,2]
[349822419,1737451861799,-500.0,0.00020821,2]
[349822420,1737451861809,-500.0,0.00020821,2]
[349822421,1737451861819,-500.0,0.00020821,2]
[349822422,1737451861828,-648.42,0.00020821,2]
[349822423,1737451861838,-500.0,0.00020821,2]
[349822424,1737451861847,-1458.78,0.00020821,2]
[349822425,1737451861856,-618.82,0.00020821,2]
[349822426,1737451861866,-500.0,0.00020821,2]
[349822427,1737451861875,-500.0,0.00020821,2]
[349822428,1737451861884,-283.88268342,0.00020821,2]
[349822429,1737451861894,-500.0,0.00020821,2]
[349822430,1737451861903,-500.0,0.00020821,2]
[349822431,1737451861912,-500.0,0.00020821,2]
[349822432,1737451861922,-500.0,0.00020821,2]
[349822433,1737451861931,-500.0,0.00020821,2]
[349822434,1737451861940,-500.0,0.00020821,2]
[349822435,1737451861950,-500.0,0.00020821,2]
[349822436,1737451861960,-500.0,0.00020821,2]
[349822437,1737451861969,-500.0,0.00020821,2]
[349822438,1737451861978,-500.0,0.00020821,2]
[349822439,1737451861987,-500.0,0.00020821,2]
[349822440,1737451861996,-500.0,0.00020821,2]
[349822441,1737451862007,-500.0,0.00020821,2]
[349822442,1737451862017,-500.0,0.00020821,2]
[349822443,1737451862027,-391.89307137,0.00020821,2]
[349822444,1737451862037,-500.0,0.00020821,2]
[349822445,1737451862049,-500.0,0.00020821,2]
[349822446,1737451862058,-500.0,0.00020821,2]
[349822447,1737451862068,-500.0,0.00020821,2]
[349822448,1737451862078,-500.0,0.00020821,2]
[349822449,1737451862088,-500.0,0.00020821,2]
[349822450,1737451862098,-500.0,0.00020821,2]
[349822451,1737451862107,-568.81,0.00020821,2]
[349822452,1737451862117,-500.0,0.00020821,2]
[349822453,1737451862126,-500.0,0.00020821,2]
[349822454,1737451862135,-500.0,0.00020821,2]
[349822455,1737451862145,-1180.87,0.00020821,2]
[349822456,1737451862155,-500.0,0.00020821,2]
[349822457,1737451862165,-500.0,0.00020821,2]
[349822458,1737451862174,-1000.0,0.00020821,2]
[349822459,1737451862276,-1042.35,0.00020821,2]
[349822460,1737451862286,-500.0,0.00020821,2]
[349822461,1737451862296,-500.0,0.00020821,2]
[349822462,1737451862306,-1431.03,0.00020821,2]
[349822463,1737451862316,-510.72729618,0.00020821,2]
[349822464,1737451862325,-1442.47,0.00020821,2]
[349822465,1737451862335,-1618.9,0.00020821,2]
[349822466,1737451862345,-784.62,0.00020821,2]
[349822467,1737451862355,-1181.46,0.00020821,2]
[349822468,1737451862364,-700.2,0.00020821,2]
[349822469,1737451862375,-500.0,0.00020821,2]
[349822470,1737451862387,-500.0,0.00020821,2]
[349822471,1737451862397,-864.13,0.00020821,2]
[349822472,1737451862407,-1046.8,0.00020821,2]
[349822473,1737451862417,-500.0,0.00020821,2]
[349822474,1737451862426,-2225.67,0.00020821,2]
[349822475,1737451862436,-997.49,0.00020821,2]
[349822476,1737451862446,-500.0,0.00020821,2]
[349822477,1737451862459,-456.45091151,0.00020821,2]
[349822478,1737451862470,-643.01,0.00020821,2]
[349822479,1737451862479,-500.0,0.00020821,2]
[349822480,1737451862490,-1363.79,0.00020821,2]
[349822481,1737451862500,-500.0,0.00020821,2]
[349822482,1737451862515,-968.6,0.00020821,2]
[349822483,1737451862525,-731.54,0.00020821,2]
[349822484,1737451862535,-671.55,0.00020821,2]
[349822485,1737451862547,-500.0,0.00020821,2]
[349822486,1737451862557,-1512.89,0.00020821,2]
[349822487,1737451862567,-1824.0,0.00020821,2]
[349822488,1737451862579,-500.0,0.00020821,2]
[349822489,1737451862589,-500.0,0.00020821,2]
[349822490,1737451862600,-720.36,0.00020821,2]
[349822491,1737451862611,-500.0,0.00020821,2]
[349822492,1737451862622,-500.0,0.00020821,2]
[349822493,1737451862633,-1598.88,0.00020821,2]
[349822494,1737451862644,-300.0,0.00020821,2]
[349822495,1737451862654,-1625.7,0.00020821,2]
[349822496,1737451862664,-500.0,0.00020821,2]
[349822497,1737451862673,-11076.26,0.00020821,2]
[349822498,1737451862683,-714.81,0.00020821,2]
[349822499,1737451862693,-405.71652632,0.00020846,2]
[349822500,1737451862703,-153.76225086,0.00020892,2]
[349822501,1737451862712,-1028.82,0.00020899,2]
[349822502,1737451862722,-1000.0,0.000209,2]
[349822503,1737451862733,-122215.62621,0.000209,2]
[349822504,1737451862743,-161.458,0.000209,2]
[349822505,1737451862754,-300.0,0.000209,7]
[349822506,1737451862771,-167.84384317,0.00020951,2]
[349822507,1737451862781,-150.0,0.00020973,2]
[349822508,1737451862791,-500.0,0.00020995,2]
[349822509,1737451862801,-100603.9945,0.00020995,2]
[349822510,1737451862810,-220.0,0.00020995,2]
[349822511,1737451862819,-567.0,0.00021,2]
[349822512,1737451862829,-636.0,0.00021,2]
[349822513,1737451862838,-150.0,0.00021,2]
[349822514,1737451862848,-1864.0,0.00021,2]
[349822515,1737451862858,-1261.0,0.00021,2]
[349822516,1737451862868,-781.0,0.00021,2]
[349822517,1737451862878,-907.0,0.00021,2]
[349822518,1737451862888,-2948.0,0.00021,2]
[349822519,1737451862897,-150.0,0.00021,2]
[349822520,1737451862907,-3984.0,0.00021,2]
[349822521,1737451862916,-537.0,0.00021,2]
[349822522,1737451862926,-152.519,0.00021,2]
[349822523,1737451862936,-1356.552,0.00021,2]
[349822524,1737451862946,-3902.0,0.00021,2]
[349822525,1737451862956,-2035.228,0.00021,2]
[349822526,1737451862966,-637.0,0.00021,2]
[349822527,1737451862976,-144852.0,0.00021,2]
[349822528,1737451862985,-322096.42860131,0.00021,2]
[349822529,1737451862995,-13034.57032323,0.00021,2]
[349822530,1737451863005,-1893.55436817,0.00021,2]
[349822531,1737451863018,-52210.59200469,0.00021,2]
[349822532,1737451863028,-20709.56445576,0.00021,3]
[349822533,1737451863038,-2880.33855767,0.00021,3]
[349822534,1737451863049,-27195.70087213,0.00021,2]
[349822535,1737451863060,-151.0,0.00021,2]
[349822536,1737451863072,-161.461183,0.00021,2]
[349822537,1737451863083,-151.0,0.00021,2]
[349822538,1737451863094,-151.0,0.00021,2]
[349822539,1737451863106,-157.088995,0.00021,2]
[349822540,1737451863116,-203.611633,0.00021,2]
[349822541,1737451863126,-203.611633,0.00021,2]
[349822542,1737451863137,-1031.816415,0.00021,2]
[349822543,1737451863148,-151.0,0.00021,2]
[349822544,1737451863159,-1031.816415,0.00021,2]
[349822545,1737451863170,-151.0,0.00021,2]
[349822546,1737451863182,-151.0,0.00021,2]
[349822547,1737451863192,-229.99564,0.00021,2]
[349822548,1737451863202,-244.10228757,0.00021036,2]
[349822549,1737451863212,-151.0,0.00021041,2]
[349822550,1737451863222,-153.14306,0.00021041,2]
[349822551,1737451863232,-1120.911214,0.00021041,2]
[349822552,1737451863242,-1120.911214,0.00021041,2]
[349822553,1737451863252,-151.0,0.00021041,2]
[349822554,1737451863265,-1561.73,0.00021041,2]
[349822555,1737451863275,-438.48,0.00021041,2]
[349822556,1737451863285,-438.48,0.00021041,2]
[349822557,1737451863295,-438.48,0.00021041,2]
[349822558,1737451863305,-438.48,0.00021041,2]
[349822559,1737451863316,-1198.03,0.00021041,2]
[349822560,1737451863326,-438.48,0.00021041,2]
[349822561,1737451863336,-773.11,0.00021041,2]
[349822562,1737451863346,-438.48,0.00021041,2]
[349822563,1737451863356,-438.48,0.00021041,2]
[349822564,1737451863366,-773.11,0.00021041,2]
[349822565,1737451863379,-438.48,0.00021041,2]
[349822566,1737451863390,-773.11,0.00021041,2]
[349822567,1737451863401,-438.48,0.00021041,2]
[349822568,1737451863411,-773.11,0.00021041,2]
[349822569,1737451863422,-773.11,0.00021041,2]
[349822570,1737451863432,-438.48,0.00021041,2]
[349822571,1737451863442,-438.48,0.00021041,2]
[349822572,1737451863451,-773.11,0.00021041,2]
[349822573,1737451863461,-438.48,0.00021041,2]
[349822574,1737451863471,-773.11,0.00021041,2]
[349822575,1737451863482,-237.33,0.00021041,2]
[349822576,1737451863492,-772.46,0.00021041,2]
[349822577,1737451863502,-437.65,0.00021041,2]
[349822578,1737451863514,-438.48,0.00021041,2]
[349822579,1737451863523,-438.48,0.00021041,2]
[349822580,1737451863533,-438.48,0.00021041,2]
[349822581,1737451863544,-438.48,0.00021041,2]
[349822582,1737451863555,-438.48,0.00021041,2]
[349822583,1737451863565,-446.95,0.00021041,2]
[349822584,1737451863575,-500.0,0.00021094,2]
[349822585,1737451863585,-500.0,0.00021094,2]
[349822586,1737451863596,-647.89,0.00021094,2]
[349822587,1737451863606,-893.13,0.00021094,2]
[349822588,1737451863617,-500.0,0.00021094,2]
[349822589,1737451863627,-500.0,0.00021094,2]
[349822590,1737451863639,-500.0,0.00021094,2]
[349822591,1737451863649,-500.0,0.00021094,2]
[349822592,1737451863659,-500.0,0.00021094,2]
[349822593,1737451863669,-500.0,0.00021094,2]
[349822594,1737451863679,-500.0,0.00021094,2]
[349822595,1737451863690,-500.0,0.00021094,2]
[349822596,1737451863700,-567.64766315,0.00021094,2]
[349822597,1737451863709,-500.0,0.00021094,2]
[349822598,1737451863720,-500.0,0.00021094,2]
[349822599,1737451863730,-500.0,0.00021094,2]
[349822600,1737451863739,-500.0,0.00021094,2]
[349822601,1737451863749,-500.0,0.00021094,2]
[349822602,1737451863759,-500.0,0.00021094,2]
[349822603,1737451863769,-500.0,0.00021094,2]
[349822604,1737451863779,-500.0,0.00021094,2]
[349822605,1737451863788,-500.0,0.00021094,2]
[349822606,1737451863798,-368.61,0.00021094,2]
[349822607,1737451863808,-500.0,0.00021094,2]
[349822608,1737451863819,-500.0,0.00021094,2]
[349822609,1737451863830,-500.0,0.00021094,2]
[349822610,1737451863841,-500.0,0.00021094,2]
[349822611,1737451863851,-500.0,0.00021094,2]
[349822612,1737451863952,-500.0,0.00021094,2]
[349822613,1737451863963,-500.0,0.00021094,2]
[349822614,1737451863973,-550.69,0.00021094,2]
[349822615,1737451863983,-525.13,0.00021094,2]
[349822616,1737451863994,-521.1,0.00021094,2]
[349822617,1737451864004,-797.02,0.00021094,2]
[349822618,1737451864016,-556.55,0.00021094,2]
[349822619,1737451864026,-1866.84,0.00021094,2]
[349822620,1737451864037,-2519.65,0.00021094,2]
[349822621,1737451864049,-548.24,0.00021094,2]
[349822622,1737451864060,-777.32,0.00021094,2]
[349822623,1737451864071,-500.0,0.00021094,2]
[349822624,1737451864082,-1125.78,0.00021094,2]
[349822625,1737451864093,-155.553152,0.00021094,2]
[349822626,1737451864103,-500.0,0.00021094,2]
[349822627,1737451864113,-788.4,0.00021094,2]
[349822628,1737451864123,-1354.69,0.00021094,2]
[349822629,1737451864133,-294.18628343,0.00021094,2]
[349822630,1737451864143,-500.0,0.00021094,2]
[349822631,1737451864153,-500.0,0.00021094,2]
[349822632,1737451864164,-500.0,0.00021094,2]
[349822633,1737451864174,-500.0,0.00021094,2]
[349822634,1737451864184,-500.0,0.00021094,2]
[349822635,1737451864194,-179.96857332,0.00021094,2]
[349822636,1737451864204,-844.31,0.00021094,2]
[349822637,1737451864213,-208.822323,0.00021094,2]
[349822638,1737451864223,-1391.48,0.00021094,2]
[349822639,1737451864233,-1002.55,0.00021094,2]
[349822640,1737451864243,-500.0,0.00021094,2]
[349822641,1737451864253,-500.0,0.00021094,2]
[349822642,1737451864267,-640.71,0.00021094,2]
[349822643,1737451864277,-500.0,0.00021094,2]
[349822644,1737451864288,-500.0,0.00021094,2]
[349822645,1737451864299,-500.0,0.00021094,2]
[349822646,1737451864309,-731.04,0.00021094,2]
[349822647,1737451864320,-500.0,0.00021094,2]
[349822648,1737451864329,-500.0,0.00021094,2]
[349822649,1737451864339,-500.0,0.00021094,2]
[349822650,1737451864348,-714.65,0.00021094,2]
[349822651,1737451864358,-500.0,0.00021094,2]
[349822652,1737451864368,-505.72,0.00021094,2]
[349822653,1737451864378,-1332.26,0.00021094,2]
[349822654,1737451864392,-500.0,0.00021094,2]
[349822655,1737451864401,-1133.86,0.00021094,2]
[349822656,1737451864411,-623.68,0.00021094,2]
[349822657,1737451864421,-1398.4,0.00021094,2]
[349822658,1737451864433,-500.0,0.00021094,2]
[349822659,1737451864443,-1012.63,0.00021094,2]
[349822660,1737451864453,-500.0,0.00021094,2]
[349822661,1737451864467,-1816.63,0.00021094,2]
[349822662,1737451864477,-500.0,0.00021094,2]
[349822663,1737451864486,-2242.61,0.00021094,2]
[349822664,1737451864497,-537.32,0.00021094,2]
[349822665,1737451864507,-500.0,0.00021094,2]
[349822666,1737451864518,-500.0,0.00021094,2]
[349822667,1737451864530,-598.63,0.00021094,2]
[349822668,1737451864540,-819.36,0.00021094,2]
[349822669,1737451864550,-500.0,0.00021094,2]
[349822670,1737451864559,-878.52,0.00021094,2]
[349822671,1737451864569,-500.0,0.00021094,2]
[349822672,1737451864580,-500.0,0.00021094,2]
[349822673,1737451864590,-500.0,0.00021094,2]
[349822674,1737451864601,-865.06,0.00021094,2]
[349822675,1737451864610,-2333.67,0.00021094,2]
[349822676,1737451864620,-1054.66,0.00021094,2]
[349822677,1737451864630,-500.0,0.00021094,2]
[349822678,1737451864640,-639.03,0.00021094,2]
[349822679,1737451864650,-1659.51,0.00021094,2]
[349822680,1737451864661,-500.0,0.00021094,2]
[349822681,1737451864671,-788.63,0.00021094,2]
[349822682,1737451864681,-500.0,0.00021094,2]
[349822683,1737451864691,-2681.81,0.00021094,2]
[349822684,1737451864701,-500.0,0.00021094,2]
[349822685,1737451864710,-792.79,0.00021094,2]
[349822686,1737451864720,-500.0,0.00021094,2]
[349822687,1737451864729,-607.89,0.00021094,2]
[349822688,1737451864740,-809.0,0.00021094,2]
[349822689,1737451864749,-630.14,0.00021094,2]
[349822690,1737451864760,-500.0,0.00021094,2]
[349822691,1737451864770,-1650.93,0.00021094,2]
[349822692,1737451864780,-1908.06,0.00021094,2]
[349822693,1737451864790,-1008.63,0.00021094,2]
[349822694,1737451864799,-500.0,0.00021094,2]
[349822695,1737451864809,-2139.5,0.00021094,2]
[349822696,1737451864819,-609.84,0.00021094,2]
[349822697,1737451864830,-1503.49,0.00021094,2]
[349822698,1737451864840,-1375.23,0.00021094,2]
[349822699,1737451864849,-500.0,0.00021094,2]
[349822700,1737451864859,-500.0,0.00021094,2]
[349822701,1737451864869,-900.29,0.00021094,2]
[349822702,1737451864878,-372.423621,0.00021095,2]
[349822703,1737451864888,-500.0,0.00021095,2]
[349822704,1737451864897,-500.0,0.00021095,2]
[349822705,1737451864907,-318.180489,0.00021095,2]
[349822706,1737451864916,-500.0,0.00021095,2]
[349822707,1737451864926,-500.0,0.00021095,2]
[349822708,1737451864937,-500.0,0.00021095,2]
[349822709,1737451864947,-1366.89,0.00021095,2]
[349822710,1737451864956,-500.0,0.00021095,2]
[349822711,1737451864966,-643.51,0.00021095,2]
[349822712,1737451864976,-500.0,0.00021095,2]
[349822713,1737451864986,-500.0,0.00021095,2]
[349822714,1737451864997,-500.0,0.00021095,2]
[349822715,1737451865007,-500.0,0.00021095,2]
[349822716,1737451865021,-500.0,0.00021095,2]
[349822717,1737451865031,-687.44,0.00021095,2]
[349822718,1737451865043,-500.0,0.00021095,2]
[349822719,1737451865053,-500.0,0.00021095,2]
[349822720,1737451865063,-500.0,0.00021095,2]
[349822721,1737451865073,-565.39,0.00021095,2]
[349822722,1737451865084,-500.0,0.00021095,2]
[349822723,1737451865094,-500.0,0.00021095,2]
[349822724,1737451865104,-500.0,0.00021095,2]
[349822725,1737451865114,-500.0,0.00021095,2]
[349822726,1737451865124,-984.73,0.00021095,2]
[349822727,1737451865134,-500.0,0.00021095,2]
[349822728,1737451865143,-703.52,0.00021095,2]
[349822729,1737451865153,-500.0,0.00021095,2]
[349822730,1737451865163,-500.0,0.00021095,2]
[349822731,1737451865172,-500.0,0.00021095,2]
[349822732,1737451865182,-321.7567374,0.00021095,2]